Cogmind - Beta 12 X4 @@@ ROGUE MODE // 2022.11.13 @ 23:28:09 Player: Runia Result: Escaped singularity! Performance ------------- Evolutions (9) 4500 Regions Visited (33) 6600 Robots Destroyed (329) 1645 Value Destroyed (15625) 15625 Prototype IDs (286) 5720 Alien Tech Used (8) 1600 Bonus (48875) 48875 TOTAL SCORE: 84565 Bonus ------- High Alert Combat Kills 1575 Follower Combat Kills 2046 Network Hubs Disabled 200 Met Data Miner 300 Met Zhirov 300 Met Warlord at Base 500 MAIN.C Attacked Warlord 500 Built Enhanced Grunts 300 A7 Reached Mainframe 300 Met R17 at Cetus 500 Used Core Reset Matrix 3000 Met R17 at Research 2000 Met Warlord at Research 2000 Destroyed MAIN.C Guards 500 Met MAIN.C 5000 Destroyed MAIN.C Shell 5000 Destroyed MAIN.C 10000 Met Architect 300 Destroyed A8 300 Destroyed Architect 15000 Win 3000 Friendly Fire -3746 Cogmind --------- Core Integrity 402/1600 Matter 270/300 Energy 99/100 System Corruption 0% Temperature Cool (0) Movement Core (50) Location Near Former Tau Ceti IV Parts ------- > --- POWER (4) -------- (None) > --- PROPULSION (7) --- (None) > --- UTILITY (8) ------ (None) > --- WEAPON (6) ------- (None) > --- INVENTORY (5) ---- Vortex Chain Reactor Biometal Medium Treads Core Cannon Peak State ------------ > --- POWER ------------ Quantum Reactor Quantum Reactor Light Quantum Reactor Light Quantum Reactor > --- PROPULSION ------- Biometal Heavy Treads Centrium Leg Centrium Leg Centrium Leg Centrium Leg High-density Centrium Leg > --- UTILITY ---------- Experimental Cooling System Advanced Coolant Injector High-capacity Storage Unit Experimental Targeting Computer Advanced Phase Shifter Centrium Light Armor Plating Improved Powered Armor Graphene Brace > --- WEAPON ----------- BFG-9k Vortex Edition > --- INVENTORY -------- Enhanced Biometal Leg Centrium Leg Advanced Heat Sink Advanced Heat Sink Advanced Heat Sink Advanced Energy Well Makeshift Transmission Jammer High-powered Transdimensional Reconstructor Enhanced Nova Cannon Enhanced Nova Cannon Core Cannon BFG-9k Vortex Edition [Rating: 249] Favorites ----------- Power Vortex Chain Reactor Engine Light Angular Momentum Engine Power Core Light Nuclear Core Reactor Vortex Chain Reactor Propulsion Titanium Leg Treads Light Treads Leg Titanium Leg Wheel Compact Wheel Utility Large Storage Unit Device Advanced Cooling System Storage Large Storage Unit Processor Experimental Targeting Computer Hackware Advanced Hacking Suite Protection Centrium Medium Armor Plating Weapon Enhanced Nova Cannon Energy Gun Heavy Beamcaster Energy Cannon Enhanced Nova Cannon Ballistic Gun Minigun Ballistic Cannon Linear Accelerator Launcher Precision Rocket Launcher Special Weapon Plasma Cutter Impact Weapon Power Maul Slashing Weapon Sigix Broadsword Piercing Weapon Kinetic Spear Build | -11 -10 -10 -10 -9 -8 -7 -7 -7 -7 -7 -7 -6 -6 -6 -6 -6 -6 -5 -5 -5 -5 -4 -4 -4 -4 -4 -3 -3 -3 -2 -1 -1 -1 ------- Run | Scr Mat Min Exi Min Mat Fac Was Fac Low Low Dat Pro Fac Ext Cet Arc Hub Fac Upp Upp War Pro Fac Upp Upp Zhi Pro Res Qua Res Acc Com Ac0 Slots Evolved 18 | . . . . . 4 2 . . . . . . 2 . . . . 2 . . . . 2 . . . . 2 . 2 2 . . Power 3 | . . . . . . 1 . . . . . . . . . . . . . . . . 1 . . . . . . . 1 . . Propulsion 5 | . . . . . 2 1 . . . . . . . . . . . . . . . . 1 . . . . 1 . . . . . Utility 6 | . . . . . 2 . . . . . . . 2 . . . . 2 . . . . . . . . . . . . . . . Weapon 4 | . . . . . . . . . . . . . . . . . . . . . . . . . . . . 1 . 2 1 . . Parts Attached 525 | 2 5 5 . 5 34 14 2 26 8 6 2 11 26 29 10 8 16 15 12 10 13 11 4 6 8 2 16 20 28 55 12 101 3 Power 35 | . 1 . . . 1 1 . 3 . . . . 2 4 . 1 2 . 1 . 1 . . . 1 1 . . 1 3 1 11 . Engine 6 | . . . . . 1 1 . 2 . . . . . 2 . . . . . . . . . . . . . . . . . . . Core 7 | . 1 . . . . . . 1 . . . . 2 1 . 1 . . . . . . . . 1 . . . . . . . . Reactor 22 | . . . . . . . . . . . . . . 1 . . 2 . 1 . 1 . . . . 1 . . 1 3 1 11 . Propulsion 95 | 2 . . . 1 7 5 . . . 1 . 2 3 9 2 5 3 1 2 . 1 . 1 . 1 . . 5 7 15 . 22 . Treads 20 | 2 . . . 1 7 . . . . 1 . . . 1 . 2 . . . . . . . . . . . . . . . 6 . Leg 74 | . . . . . . 5 . . . . . 2 3 8 2 3 3 1 2 . 1 . 1 . 1 . . 5 7 14 . 16 . Wheel 1 | . . . . . . . . . . . . . . . . . . . . . . . . . . . . . . 1 . . . Hover . | . . . . . . . . . . . . . . . . . . . . . . . . . . . . . . . . . . Flight . | . . . . . . . . . . . . . . . . . . . . . . . . . . . . . . . . . . Utility 195 | . 2 . . 1 7 5 1 8 3 2 . 2 10 5 4 2 5 7 3 2 7 9 3 3 4 1 3 1 12 28 8 45 2 Device 121 | . 1 . . . 3 2 1 7 3 1 . 2 4 3 . 1 2 4 1 1 5 8 3 3 3 . 1 1 9 16 2 33 1 Storage 12 | . 1 . . . 1 1 . . . . . . 1 . 1 . . . . . . . . . . . . . . 4 . 3 . Processor 18 | . . . . . . 1 . . . . . . 1 1 . . 1 . 1 . . . . . . . . . 1 5 4 3 . Hackware 1 | . . . . . . . . . . . . . . . . . . . . . . . . . . . . . 1 . . . . Protection 43 | . . . . 1 3 1 . 1 . 1 . . 4 1 3 1 2 3 1 1 2 1 . . 1 1 2 . 1 3 2 6 1 Artifact . | . . . . . . . . . . . . . . . . . . . . . . . . . . . . . . . . . . Weapon 200 | . 2 5 . 3 19 3 1 15 5 3 2 7 11 11 4 . 6 7 6 8 4 2 . 3 2 . 13 14 8 9 3 23 1 Energy Gun 10 | . . . . . . . . 1 . . . . . 2 1 . 1 1 . . . . . 1 . . . . . . . 3 . Energy Cannon 71 | . . . . . 1 1 . 5 1 1 1 4 2 . . . . 2 3 4 2 1 . . 1 . 6 5 5 7 2 16 1 Ballistic Gun 50 | . 1 3 . 3 10 . 1 3 . . 1 . 6 4 2 . 3 3 . . . . . 2 . . 1 4 1 1 . 1 . Ballistic Cannon 8 | . . . . . . . . . . . . . . 2 . . . . . . . . . . . . . 3 . . . 3 . Launcher 42 | . 1 2 . . 6 1 . 2 2 2 . . 1 3 . . 2 1 3 4 . 1 . . 1 . 6 2 . 1 1 . . Special Weapon 1 | . . . . . . . . . . . . 1 . . . . . . . . . . . . . . . . . . . . . Impact Weapon 15 | . . . . . 2 1 . 3 2 . . 2 2 . 1 . . . . . 2 . . . . . . . . . . . . Slashing Weapon 2 | . . . . . . . . . . . . . . . . . . . . . . . . . . . . . 2 . . . . Piercing Weapon 1 | . . . . . . . . 1 . . . . . . . . . . . . . . . . . . . . . . . . . Special Melee Weapon . | . . . . . . . . . . . . . . . . . . . . . . . . . . . . . . . . . . Unidentified Prototypes 39 | . . . . . 1 . . 3 . . . 3 1 . 2 . 2 1 . . 3 . . . . 2 . 5 7 6 1 2 . Corrupted Parts 5 | . . . . . . . . . . . . . . . 2 . . . . . . . . . . . . . . . . 3 . System Corruption 20 | . . . . . . . . . . . . . . . 12 . . . . . . . . . . . . . . . . 8 . Parts Lost 61 | . . 1 . 1 4 1 . 1 . . . . 6 5 1 . 1 2 . 1 . . 1 . 3 . 9 2 1 5 2 14 . Power 10 | . . . . . 1 . . 1 . . . . 1 1 . . . . . . . . . . . . . . . 1 . 5 . Propulsion 13 | . . . . 1 2 . . . . . . . 1 1 . . . . . . . . . . 1 . 4 . 1 2 . . . Utility 23 | . . . . . 1 1 . . . . . . 3 1 1 . 1 1 . 1 . . 1 . 2 . 3 1 . 1 1 4 . Weapon 15 | . . 1 . . . . . . . . . . 1 2 . . . 1 . . . . . . . . 2 1 . 1 1 5 . Highest Loss Streak 6 | . . 1 . 1 1 1 . 1 . . . . 3 2 1 . 1 1 . 1 . . 1 . 2 . 3 1 1 4 1 6 . To Critical Strikes 2 | . . . . . . . . . . . . . 1 . . . . . . . . . . . 1 . . . . . . . . Average Slot Usage (%) 87 | . 87 100 72 88 96 98 100 99 100 99 85 100 97 96 98 95 96 88 94 89 93 87 83 83 85 90 82 80 89 80 94 74 64 Engine 3 | . 3 . . . 7 14 15 14 15 15 15 15 11 10 . . . . . . . . . . . . . . . . . . . Core 1 | . 10 14 14 14 . . . . . . . . 1 1 6 6 3 . . . . . . . 1 2 . . . . . . . Reactor 5 | . . . . . . . . . . . . . . . 6 6 8 11 11 11 10 5 5 5 5 7 10 9 9 8 13 8 8 Treads 7 | . 28 28 28 27 33 . . . . 3 7 6 . 4 . 3 . . . . . . . . . . . . . . . 5 16 Leg 21 | . . . . . . 37 38 38 38 34 30 30 32 27 33 29 33 28 29 29 29 29 31 31 30 31 25 23 32 28 28 17 . Device 12 | . 2 14 14 9 12 7 7 6 14 14 15 15 11 13 5 2 5 12 13 11 12 23 20 20 20 21 21 23 21 15 11 8 7 Storage 6 | . 14 14 14 14 9 7 7 7 7 7 7 7 6 6 12 13 6 5 5 5 5 5 5 5 5 5 5 4 4 4 4 3 4 Processor 4 | . . . . . . 6 7 6 . . . . 6 10 12 6 6 5 10 6 3 . . . . . . . . 5 13 8 12 Protection 7 | . . . . 4 12 6 7 8 7 7 7 7 12 5 6 13 16 10 9 11 16 10 10 10 10 11 11 9 9 5 3 6 4 Energy Cannon 6 | . . . . . 4 1 . 1 5 1 . 3 2 . . . . 3 10 9 6 10 10 5 5 5 5 1 4 6 16 14 4 Ballistic Gun 5 | . 27 27 1 17 12 7 13 8 7 7 . 7 7 6 5 13 12 5 . . . . . 4 5 5 1 1 . . 4 . . Naked Turns 3 | . . . . . . . . . . . . . . . . . . . . . . . . . . . . . . . . . 3 Heaviest Build 203 | 12 30 31 31 32 109 56 48 61 61 60 59 62 69 65 75 87 85 87 94 94 112 113 115 115 128 113 125 146 149 198 195 203 181 Greatest Support 275 | 40 40 40 40 40 80 83 83 83 83 83 68 96 96 93 98 124 124 116 116 108 113 113 138 138 147 147 147 168 172 208 208 275 275 Greatest Overweight (x) 4 | . . 1 . . 1 . . . . . . . . 1 . 1 . . . . . . . . . . 2 2 1 1 . 4 . Average Overweight (x) . | . . . . . . . . . . . . . . . . . . . . . . . . . . . . . . . . . . Largest Inventory Capacity 25 | 8 15 15 15 15 25 25 15 15 15 15 15 15 15 15 15 15 15 15 15 15 15 15 15 15 15 15 15 15 15 25 20 20 20 Average Capacity 16 | 8 12 15 15 15 23 15 15 15 15 15 15 15 15 15 15 15 15 15 15 15 15 15 15 15 15 15 15 15 15 18 20 18 19 Most Carried 25 | 6 10 15 15 15 25 25 15 15 15 15 15 15 15 15 15 15 15 15 15 14 15 15 15 15 15 15 15 15 15 19 20 20 20 Average Carried 15 | 4 7 13 14 12 19 15 14 14 14 14 15 14 13 14 14 15 14 14 14 14 14 15 14 14 14 13 14 14 14 16 18 17 17 Final Capacity 25 | 8 15 15 15 15 25 15 15 15 15 15 15 15 15 15 15 15 15 15 15 15 15 15 15 15 15 15 15 15 15 20 20 20 5 Final Carried 25 | 2 10 15 15 12 25 15 15 15 14 15 15 15 13 15 15 15 15 15 14 14 15 15 14 15 13 15 15 15 15 18 17 20 5 Class Distribution -------------------- 44% | Scavenger-Mutant 28% | Mutant 16% | Generator-Mutant 3% | Scavenger-Tank Dominant Class ---------------- Mutant | -10/Materials Mutant | -10/Mines Mutant | -10/Exiles Scavenger-Mutant | -9/Mines Scavenger-Mutant | -8/Materials Mutant | -7/Factory Mutant | -7/Waste Mutant | -7/Factory Mutant | -7/Lower Caves Mutant | -7/Lower Caves Mutant | -7/Data Miner Mutant | -6/Proximity Caves Mutant | -6/Factory Scavenger-Mutant | -6/Extension Scavenger-Mutant | -6/Cetus Scavenger-Mutant | -6/Archives Scavenger-Mutant | -6/Hub_04(d) Scavenger-Mutant | -5/Factory Scavenger-Mutant | -5/Upper Caves Scavenger-Mutant | -5/Upper Caves Scavenger-Mutant | -5/Warlord Scavenger-Mutant | -4/Proximity Caves Scavenger-Mutant | -4/Factory Infiltrator-Mutant | -4/Upper Caves Scavenger-Mutant | -4/Upper Caves Scavenger-Mutant | -4/Zhirov Scavenger-Mutant | -3/Proximity Caves Scavenger-Tank | -3/Research Scavenger-Mutant | -3/Quarantine Scavenger-Mutant | -2/Research Scavenger-Tank | -1/Access Generator-Mutant | -1/Command Generator-Mutant | -1/Access_0 Resources | -11 -10 -10 -10 -9 -8 -7 -7 -7 -7 -7 -7 -6 -6 -6 -6 -6 -6 -5 -5 -5 -5 -4 -4 -4 -4 -4 -3 -3 -3 -2 -1 -1 -1 ----------- Run | Scr Mat Min Exi Min Mat Fac Was Fac Low Low Dat Pro Fac Ext Cet Arc Hub Fac Upp Upp War Pro Fac Upp Upp Zhi Pro Res Qua Res Acc Com Ac0 Matter Collected 10980 | 200 257 291 . 172 824 152 . 528 209 247 . 125 322 1256 210 434 571 269 493 240 95 195 130 39 211 . 355 402 639 589 246 1246 33 Remotely 30 | . . . . . . . . . . . . . . . . . . . . . . . . . . . . . . . . 30 . Salvage Created 15798 | . 397 255 . 84 1060 152 . 814 20 50 . 143 479 1069 . 693 1149 457 334 637 . 258 270 83 395 . 889 490 1314 497 1155 2487 167 Parts 716 | . 32 23 . 10 41 5 . 22 1 4 . 15 28 39 . 44 64 14 13 19 . 14 12 . 14 . 25 15 73 21 43 115 10 Haulers Intercepted 13 | . 1 . . . 2 . . 1 . . . . . 1 . . . 1 . . . . . . . . 1 2 2 2 . . . Recyclers Shooed 6 | . . . . . 2 . . 2 . . . . 1 . . . . . . . . . . . . . . . . . 1 . . Parts Field Recycled . | . . . . . . . . . . . . . . . . . . . . . . . . . . . . . . . . . . Retrieved Matter . | . . . . . . . . . . . . . . . . . . . . . . . . . . . . . . . . . . Parts Self-Destructed 91 | . . . . . . . . . 1 1 . 7 . . . . . . 11 20 . 14 . . 17 . 20 . . . . . . Prevented 6 | . . . . . . . . . . . . 2 . . . . . . . 2 . . . . . . 2 . . . . . . Kills | -11 -10 -10 -10 -9 -8 -7 -7 -7 -7 -7 -7 -6 -6 -6 -6 -6 -6 -5 -5 -5 -5 -4 -4 -4 -4 -4 -3 -3 -3 -2 -1 -1 -1 ------- Run | Scr Mat Min Exi Min Mat Fac Was Fac Low Low Dat Pro Fac Ext Cet Arc Hub Fac Upp Upp War Pro Fac Upp Upp Zhi Pro Res Qua Res Acc Com Ac0 Combat Hostiles Destroyed 253 | . 10 9 . 7 20 1 . 10 3 4 . 1 9 14 . 3 16 5 9 15 . 8 4 1 6 . 16 7 21 4 16 30 4 Melee 9 | . . . . . . . . 1 . . . . . . . . . . . . . . . . . . . . 6 2 . . . Guns 70 | . 7 5 . 7 12 1 . 1 . 1 . . 2 7 . 3 13 4 . . . . . . 2 . . . . . 4 1 . Cannons 88 | . . . . . 2 . . 3 . . . 1 4 2 . . . 1 1 4 . 4 3 1 2 . 5 1 14 1 7 28 4 AOE 78 | . 3 4 . . 6 . . 4 3 3 . . 3 5 . . 2 . 8 10 . 4 . . 2 . 10 6 . 1 4 . . Classes Destroyed 19 | . 4 1 . 1 4 . . 2 . . . . 2 2 . 1 . . . . . . . . . . . . 1 1 . . . Worker 15 | . 1 2 . 1 1 . . . . . . . . . . . 3 . . . . . . . . . . 4 2 . . 1 . Builder 11 | . . 1 . . . . . . . . . . 3 . . . 6 1 . . . . . . . . . . . . . . . Hauler 13 | . 1 . . . 2 . . 1 . . . . . 1 . . . 1 . . . . . . . . 1 2 2 2 . . . Recycler 14 | . . . . . 3 1 . 5 . . . . . 2 . . . . . . . . . . . . . . . . 1 2 . Mechanic 2 | . . . . . . . . 1 . . . . 1 . . . . . . . . . . . . . . . . . . . . Operator 11 | . . . . . . . . . . . . . . . . 9 1 1 . . . . . . . . . . . . . . . Watcher 8 | . . . . . 2 . . . . . . . . . . . . . . . . . . . . . . . 1 1 2 2 . Swarmer 52 | . 3 7 . 4 4 . . 2 3 4 . . . 4 . . . . . 3 . 4 . . . . . 4 3 1 6 . . Grunt 105 | . 7 2 . . 11 . . 6 . . . . 1 5 . . 10 3 9 9 . . 3 . 4 . 12 2 6 1 5 9 . Brawler 6 | . . . . . 1 . . . . . . . . . . . 2 . . 2 . . . . . . 1 . . . . . . Duelist 2 | . . . . . . . . . . . . . . 1 . . . . . . . . . . . . . . . . . 1 . Sentry 24 | . . . . . 4 1 . 1 . . . . . 3 . 3 3 1 . 1 . . 1 1 1 . 1 1 . . 1 1 . Specialist 8 | . . . . . . . . . . . . . 4 . . . 1 . . . . . . . . . . . 3 . . . . Hunter 14 | . . . . . . . . . . . . . 2 . . . . . . . . 2 . . 1 . . . . . 2 7 . Programmer 29 | . . . . . . . . 1 . . . 1 2 . . . . 1 . . . 2 . . . . 2 . 8 1 2 9 . Behemoth 1 | . . . . . . . . . . . . . . 1 . . . . . . . . . . . . . . . . . . . Enhanced Grunt 4 | . . . . . . . . . . . . 1 . . . 1 . . . . . . . . . . . . . . . . 2 Combat Programmer 1 | . . . . . . . . . . . . . . . . . . . . . . . . . . . . . . . . 1 . Striker 1 | . . . . . . . . . . . . . . . . . . . . . . . . . . . . . . 1 . . . Alpha 7 1 | . . . . . . . . . . . . . . . . . . . . . . . . . . . . . 1 . . . . Decomposer 1 | . . . . . . . . . . . . . . . . . . . . . . . . . 1 . . . . . . . . Assembled 3 | . . . . 3 . . . . . . . . . . . . . . . . . . . . . . . . . . . . . Thug 2 | . . . . . . . . . . . . . . 1 . 1 . . . . . . . . . . . . . . . . . Best Kill Streak 12 | . 5 8 . 4 5 1 . 5 3 3 . 1 6 2 . 4 7 2 3 5 . 4 2 1 4 . 5 4 8 2 7 12 3 Combat Bots Only 7 | . 3 3 . 4 5 1 . 4 3 3 . 1 4 2 . 3 7 2 3 5 . 4 2 1 4 . 5 4 7 1 6 5 3 Max Kills in Single Turn 4 | . 3 3 . 1 2 1 . 2 2 2 . 1 2 2 . 1 4 1 3 2 . 4 1 1 1 . 3 4 2 1 3 2 1 Gunslinging 1 | . 1 . . . . . . . . . . . . . . . . . . . . . . . . . . . . . . . . Exploded 4 | . 3 3 . . 2 . . 1 2 2 . . 1 2 . . 2 . 3 2 . 4 . . 1 . 3 4 . 1 3 . . Melee 1 | . . . . . . . . 1 . . . . . . . . . . . . . . . . . . . . 1 1 . . . Uniques/NPCs Destroyed 5 | . . 1 . . . . . . . . . . . . . . . . . . . . . . . . . . . . . 2 2 YI-UF0 (-10/Mines) MAIN.C Shell (-1/Command) MAIN.C (-1/Command) A8 (-1/Access_0) Architect (-1/Access_0) Combat | -11 -10 -10 -10 -9 -8 -7 -7 -7 -7 -7 -7 -6 -6 -6 -6 -6 -6 -5 -5 -5 -5 -4 -4 -4 -4 -4 -3 -3 -3 -2 -1 -1 -1 -------- Run | Scr Mat Min Exi Min Mat Fac Was Fac Low Low Dat Pro Fac Ext Cet Arc Hub Fac Upp Upp War Pro Fac Upp Upp Zhi Pro Res Qua Res Acc Com Ac0 Damage Taken 25693 | . 221 293 . 315 1162 485 . 396 17 213 . 69 1648 1303 424 . 1791 498 504 1109 . 405 534 115 609 . 1604 24 923 1415 792 7055 1769 Core 1878 | . 15 40 . 82 97 56 . 15 6 33 . . 101 174 15 . 120 39 13 63 . 35 25 . 17 . 93 12 19 71 14 505 218 Absorbed by Shields 2292 | . . . . . . . . . . . . . 234 80 148 . . . . . . 19 . . . . . 25 974 . 626 . 186 Reduced by Siege Mode 191 | . . . . . . . . . . . . . . . . . . . . . . . . . . . . . . . . 145 46 Redirected to Shielding 177 | . . . . . . . . . . . . . . 15 . . . . . . . . . . . . 162 . . . . . . Regen/Repaired (Parts) 1123 | . . . . . . . . . . . . . . . . . . . . . 943 . . . . . . . 151 29 . . . Core Remaining (%) 74 | 100 . . . 45 82 . . . . . . 84 . . . . 51 . . . . 85 . . . . 88 . 94 86 . . 25 Volleys Fired 899 | . 27 35 . 22 88 19 . 25 4 7 . 21 40 79 10 42 45 29 19 28 . 17 25 4 19 . 44 9 53 17 33 125 13 Largest 4 | . 2 2 . 2 2 2 . 2 1 2 . 2 2 2 2 2 2 2 2 2 . 2 2 2 2 . 2 3 2 2 4 4 1 Hottest 540 | . 40 43 . 43 85 85 . 85 36 85 . 85 115 109 162 70 70 180 180 180 . 180 180 180 125 . 169 266 300 226 377 540 300 Shots Fired 1569 | . 54 66 . 44 164 35 1 43 6 11 . 30 62 134 17 81 87 57 20 46 . 28 43 8 35 . 60 21 77 23 82 221 13 Gun 769 | . 53 61 . 44 132 17 1 17 3 4 . 9 24 85 17 81 84 52 . . . . . . 16 . 11 7 . . 20 31 . Cannon 704 | . . . . . 22 16 . 21 . 4 . 8 33 45 . . . 5 13 36 . 27 43 8 16 . 35 12 77 20 60 190 13 Launcher 83 | . 1 5 . . 10 2 . 5 3 3 . . 5 4 . . 3 . 7 10 . 1 . . 3 . 14 2 . 3 2 . . Special 13 | . . . . . . . . . . . . 13 . . . . . . . . . . . . . . . . . . . . . Kinetic 801 | . 53 61 . 44 132 17 1 17 3 4 . 9 24 117 10 81 84 31 . . . . . . 16 . 11 13 22 . 20 31 . Thermal 645 | . . . . . 22 16 . 21 . 4 . 21 33 13 7 . . 26 13 36 . 27 43 8 16 . 28 6 55 20 60 163 7 Explosive 81 | . 1 5 . . 10 2 . 5 3 3 . . 5 4 . . 1 . 7 10 . 1 . . 3 . 14 2 . 3 2 . . Electromagnetic 9 | . . . . . . . . . . . . . . . . . 2 . . . . . . . . . 7 . . . . . . Entropic 33 | . . . . . . . . . . . . . . . . . . . . . . . . . . . . . . . . 27 6 Robot Hit Streak 29 | . 8 15 . 5 18 13 14 8 3 5 . 9 12 12 4 13 15 21 15 20 . 10 16 5 11 . 14 12 10 3 15 29 14 Robot Miss Streak 5 | . 3 5 . 2 5 3 . 2 . 1 . 3 4 5 4 5 4 3 . 3 . 2 1 3 1 . 2 1 4 2 2 2 . Penetration Max 1 | . . . . . . . . . . . . . . 1 . 1 1 . . . . . . . . . . 1 1 . . 1 . Secondary Targets 4 | . 2 . . 2 . . . . . . . . . . . . . . . . . . . . . . . . . . . . . Max Gunslinging Chain 1 | . 1 . . 1 . . . . . . . . . . . . . . . . . . . . . . . . . . . . . Shots Hit Robots 1005 | . 37 46 . 26 106 29 1 29 1 6 . 18 32 71 10 50 50 37 8 27 . 18 28 5 28 . 49 15 54 18 59 134 13 Core Hits 623 | . 26 24 . 11 57 3 1 21 3 5 . 11 25 51 4 33 49 13 18 36 . 9 8 2 17 . 47 14 28 14 35 52 6 Critical Kills 31 | . . . . . 1 . . . . . . . . 3 . 7 4 2 . 1 . . 1 . 1 . . . 4 . 2 3 2 Critical Parts Destroyed 26 | . 1 1 . . . . . 1 . . . . 1 2 . 4 4 2 . . . . . . . . 1 . 2 . . 6 1 Critical Strikes 67 | . 1 1 . . 1 . . 1 . . . . 1 5 . 13 8 4 . 1 . . 1 . 2 . 1 . 11 . 2 10 4 Meltdown 5 | . . . . . . . . . . . . . . . . . . . . 1 . . 1 . . . . . 1 . 1 1 . Destroy 55 | . 1 1 . . 1 . . . . . . . 1 5 . 13 8 4 . . . . . . 2 . 1 . 5 . 1 8 4 Smash 1 | . . . . . . . . 1 . . . . . . . . . . . . . . . . . . . . . . . . . Sever 5 | . . . . . . . . . . . . . . . . . . . . . . . . . . . . . 5 . . . . Sunder 1 | . . . . . . . . . . . . . . . . . . . . . . . . . . . . . . . . 1 . Melee Attacks 90 | . . . . . 1 3 . 16 8 . . 2 8 . 2 . . . . . 12 . . . . . . . 25 13 . . . Impact 52 | . . . . . 1 3 . 16 8 . . 2 8 . 2 . . . . . 12 . . . . . . . . . . . . Slashing 38 | . . . . . . . . . . . . . . . . . . . . . . . . . . . . . 25 13 . . . Piercing . | . . . . . . . . . . . . . . . . . . . . . . . . . . . . . . . . . . Sneak Attacks 5 | . . . . . . . . 3 . . . . . . . . . . . . . . . . . . . . . 2 . . . Combat Hostiles . | . . . . . . . . . . . . . . . . . . . . . . . . . . . . . . . . . . Follow-up Attacks . | . . . . . . . . . . . . . . . . . . . . . . . . . . . . . . . . . . Damage Inflicted 60609 | . 686 967 . 315 2758 600 18 1550 291 361 . 245 1690 2234 229 1645 3069 989 1221 2711 . 1039 1002 173 1111 . 3445 1261 4454 1786 2920 18095 3744 Guns 10348 | . 505 589 . 315 1454 251 18 161 . 66 . 71 276 1182 229 1589 1520 860 . . . . . . 83 . 77 129 . . 445 528 . Cannons 33464 | . . . . . 288 325 . 276 . 47 . 123 637 443 . . . 129 32 754 . 681 1002 173 383 . 1032 437 2964 475 1952 17567 3744 Explosions 13636 | . 176 361 . . 1008 . . 689 291 248 . . 777 609 . . 1509 . 1189 1844 . 358 . . 645 . 2336 537 . 536 523 . . Melee 2713 | . . . . . . 24 . 424 . . . . . . . . . . . . . . . . . . . . 1490 775 . . . Ramming 397 | . 5 17 . . 8 . . . . . . . . . . 56 40 . . 113 . . . . . . . 158 . . . . . Kinetic 11950 | . 505 589 . 315 1454 251 18 161 . 66 . 71 276 1489 163 1589 1520 590 . . . . . . 83 . 77 409 1351 . 445 528 . Thermal 17892 | . 81 . . . 578 325 . 276 . 47 . 174 866 136 66 . 321 399 32 754 . 681 1002 173 383 . 880 157 1613 475 1952 5401 1120 Explosive 11678 | . 95 361 . . 718 . . 689 291 248 . . 548 609 . . 151 . 1189 1844 . 358 . . 645 . 2336 537 . 536 523 . . Electromagnetic 1189 | . . . . . . . . . . . . . . . . . 1037 . . . . . . . . . 152 . . . . . . Impact 448 | . . . . . . 24 . 424 . . . . . . . . . . . . . . . . . . . . . . . . . Slashing 2265 | . . . . . . . . . . . . . . . . . . . . . . . . . . . . . 1490 775 . . . Piercing . | . . . . . . . . . . . . . . . . . . . . . . . . . . . . . . . . . . Entropic 14790 | . . . . . . . . . . . . . . . . . . . . . . . . . . . . . . . . 12166 2624 Highest Corruption 25 | . 4 4 4 4 . . 18 18 18 13 13 13 5 13 25 25 20 1 1 1 1 . . . . . 6 2 12 . 1 15 . Average Corruption 8 | . 3 4 4 4 . . 11 18 13 13 13 13 2 7 18 21 19 1 1 1 1 . . . . . 5 2 4 . 1 7 . Corruption Purged 34 | . . . . . . . . . 5 . . . . . . 6 . . . . . . . . . . . . . . . 23 . Corruption Blocked 3 | . . . . . . . . . . . . . . . . . . . . 1 . . . . . . . . . 2 . . . Effects 482 | . 6 23 13 11 . . 5 62 33 21 6 22 7 54 20 34 31 1 8 7 . . . . . . 19 7 20 . 1 71 . Message Errors 114 | . 2 6 7 4 . . 1 12 7 4 1 4 2 19 4 6 7 . 2 . . . . . . . 5 2 3 . . 16 . Matter Fused 103 | . 3 4 2 2 . . 2 17 5 7 1 4 1 3 5 8 6 . 4 3 . . . . . . 5 2 4 . 1 14 . Heat Flow Errors 72 | . . 1 1 1 . . 1 8 8 3 2 4 2 9 2 7 8 . . 1 . . . . . . 2 1 2 . . 9 . Energy Discharges 50 | . . 3 1 2 . . . 4 6 1 . 4 1 7 . 5 1 . . 2 . . . . . . 2 . 2 . . 9 . Parts Rejected 5 | . . . . . . . . . . . . . . 1 1 . . . . . . . . . . . . . . . . 3 . Data Loss (minor) 54 | . . 4 1 . . . . 7 4 . 2 2 . 3 1 4 3 1 1 . . . . . . . 3 1 7 . . 10 . Data Loss (major) 27 | . . 3 1 1 . . . 3 . 4 . 3 . 2 2 1 1 . 1 1 . . . . . . 1 . . . . 3 . Misfires 24 | . 1 1 . 1 . . 1 5 2 . . 1 . 4 . . 2 . . . . . . . . . 1 1 2 . . 2 . Alerts 6 | . . 1 . . . . . 1 1 1 . . 1 . 1 . . . . . . . . . . . . . . . . . . Misdirections 15 | . . . . . . . . 5 . 1 . . . 1 3 . 1 . . . . . . . . . . . . . . 4 . Weapon Failures 12 | . . . . . . . . . . . . . . 5 1 3 2 . . . . . . . . . . . . . . 1 . Overload Shots . | . . . . . . . . . . . . . . . . . . . . . . . . . . . . . . . . . . Overflow Damage 4128 | . . . . . 61 26 . 270 3 6 . . 15 . . . 44 . 1 18 . 101 3 . 22 . 16 84 415 253 81 2519 190 Projectiles 3193 | . . . . . . 26 . . . 6 . . . . . . . . . . . 66 3 . 22 . 16 1 259 9 76 2519 190 Explosions 299 | . . . . . 61 . . 21 3 . . . 15 . . . 44 . 1 18 . 35 . . . . . 36 . 60 5 . . Melee 636 | . . . . . . . . 249 . . . . . . . . . . . . . . . . . . . 47 156 184 . . . Knockbacks 14 | . . . . . . . . 1 . . . . . 4 . . . . . 1 . . . . . . . 1 7 . . . . Impact 2 | . . . . . . . . 1 . . . . . . . . . . . 1 . . . . . . . . . . . . . Kinetic 10 | . . . . . . . . . . . . . . 4 . . . . . . . . . . . . . 1 5 . . . . Secondary 2 | . . . . . . . . . . . . . . . . . . . . . . . . . . . . . 2 . . . . Self-Inflicted Damage 642 | . . 39 . . . . . 23 . . . . 118 5 . . 99 . 68 106 . 38 . . . . . . . 59 87 . . Shots 14 | . . 1 . . . . . 1 . . . . 3 1 . . 1 . 2 2 . 1 . . . . . . . 1 1 . . Rammed 26 | . 1 6 . . 1 . . . . . . . . . . 18 . . . . . . . . . . . . . . . . . Targets Rammed 35 | . 1 6 . . 1 . . . . . . . . . . 18 1 . . 5 . . . . . . . 3 . . . . . Kicked 9 | . . . . . . . . . . . . . . . . . 1 . . 5 . . . . . . . 3 . . . . . Crushed . | . . . . . . . . . . . . . . . . . . . . . . . . . . . . . . . . . . Highest Temperature 456 | . 8 186 213 308 173 199 89 260 282 286 160 265 234 199 90 298 270 199 . 205 . . . . . . 104 109 370 69 311 456 210 Average Temperature 90 | . 1 104 119 101 54 103 41 76 105 112 71 115 111 61 50 84 93 110 . 62 . . . . . . 68 43 121 27 90 128 127 Received Heat Transfer 3975 | . 117 99 . . 567 144 . 141 . . . . 69 293 52 . 648 171 132 270 . . 69 18 117 . 395 . 46 81 87 459 . Effects 4 | . . . . 1 . . . . . . . . . . . . . . . . . . . . . . . . 1 . . 2 . Shutdowns 2 | . . . . . . . . . . . . . . . . . . . . . . . . . . . . . 1 . . 1 . Interference 1 | . . . . 1 . . . . . . . . . . . . . . . . . . . . . . . . . . . . . Matter Decay 1 | . . . . . . . . . . . . . . . . . . . . . . . . . . . . . . . . 1 . Siege Activations 2 | . . . . . . . . . . . . . . . . . . . . . . . . . . . . . . . . 1 1 Total Turns 79 | . . . . . . . . . . . . . . . . . . . . . . . . . . . . . . . . 65 14 Longest Duration 65 | . . . . . . . . . . . . . . . . . . . . . . . . . . . . . . . . 65 14 Robots Corrupted 2 | . . . . . . . . . . . . . . . . . 1 . . . . . . . . . 1 . . . . . . Combat Hostiles 2 | . . . . . . . . . . . . . . . . . 1 . . . . . . . . . 1 . . . . . . Parts Fried 11 | . . . . . . . . 3 . . . . . . . . 5 . . . . . . . . . 1 2 . . . . . Impact Corruptions 11 | . . . . . . . . 8 . . . . . . . . . . . . . . . . . . . 2 1 . . . . Robots Melted 5 | . . . . . . . . . . . . . . . . . . . . 1 . . 1 . . . . . 1 . 1 1 . Combat Hostiles 5 | . . . . . . . . . . . . . . . . . . . . 1 . . 1 . . . . . 1 . 1 1 . Parts Melted 21 | . . . . . . 1 . 2 . . . . 1 . . . . . . 1 . . 1 . 1 . . . 3 . 4 7 . Heat Transferred 12780 | . 50 . . . 644 518 . 444 . 74 . 518 200 222 111 . 350 544 50 650 . 400 750 150 600 . 400 148 555 444 1702 3256 . Parts Sabotaged 2 | . . . . . . . . . . . . . . . . . 2 . . . . . . . . . . . . . . . . Parts Stolen . | . . . . . . . . . . . . . . . . . . . . . . . . . . . . . . . . . . Parts Stripped . | . . . . . . . . . . . . . . . . . . . . . . . . . . . . . . . . . . Power Chain Reactions 3 | . . . . . . . . . . . . . 2 . . . 1 . . . . . . . . . . . . . . . . Missiles Intercepted . | . . . . . . . . . . . . . . . . . . . . . . . . . . . . . . . . . . Alert | -11 -10 -10 -10 -9 -8 -7 -7 -7 -7 -7 -7 -6 -6 -6 -6 -6 -6 -5 -5 -5 -5 -4 -4 -4 -4 -4 -3 -3 -3 -2 -1 -1 -1 ------- Run | Scr Mat Min Exi Min Mat Fac Was Fac Low Low Dat Pro Fac Ext Cet Arc Hub Fac Upp Upp War Pro Fac Upp Upp Zhi Pro Res Qua Res Acc Com Ac0 Peak Influence 1036 | . 356 291 . 100 288 194 82 229 . . . . 182 458 797 642 1036 681 . . . . 237 . . . . 237 547 406 686 932 . Initial 497 | . . 33 . . 11 126 67 43 . . . . . 88 256 318 154 497 . . . . 63 . . . . 36 38 307 184 327 . Average 232 | . 153 142 . 38 133 151 65 89 . . . . 46 137 495 532 533 580 . . . . 145 . . . . 128 215 240 383 553 . Maximum Alert Level 4 | . 1 1 . . 1 . . 1 . . . . . 2 3 2 3 2 . . . . 1 . . . . 1 2 2 2 4 . Low Security (%) 43 | 100 82 63 . 100 78 100 100 99 . . . . 100 68 . . 25 . . . . . 76 . . . . 56 58 39 18 . . Level 1 17 | . 17 36 . . 21 . . . . . . . . 27 57 3 19 3 . . . . 23 . . . . 43 23 57 29 5 . Level 2 10 | . . . . . . . . . . . . . . 4 22 96 15 96 . . . . . . . . . . 17 3 52 7 . Level 3 3 | . . . . . . . . . . . . . . . 20 . 38 . . . . . . . . . . . . . . 6 . Level 4 24 | . . . . . . . . . . . . . . . . . . . . . . . . . . . . . . . . 79 . Level 5 . | . . . . . . . . . . . . . . . . . . . . . . . . . . . . . . . . . . High Security . | . . . . . . . . . . . . . . . . . . . . . . . . . . . . . . . . . . Max Security . | . . . . . . . . . . . . . . . . . . . . . . . . . . . . . . . . . . Squads Dispatched 48 | . 3 . . . 3 . . 5 . . . . 3 1 . . 9 3 . 1 . . 2 . . . . 6 6 . 2 4 . Investigation 7 | . 1 . . . . . . . . . . . 1 . . . . 1 . . . . 1 . . . . 3 . . . . . Extermination 9 | . . . . . . . . 1 . . . . . . . . 1 . . . . . . . . . . . 3 . 1 3 . Reinforcement 24 | . 2 . . . 3 . . . . . . . 2 1 . . 7 2 . . . . 1 . . . . 3 3 . . . . Assault 5 | . . . . . . . . 1 . . . . . . . . 1 . . 1 . . . . . . . . . . 1 1 . Garrison 3 | . . . . . . . . 3 . . . . . . . . . . . . . . . . . . . . . . . . . Intercept . | . . . . . . . . . . . . . . . . . . . . . . . . . . . . . . . . . . Searches Triggered . | . . . . . . . . . . . . . . . . . . . . . . . . . . . . . . . . . . Data Miner Redirects 4 | . . . . . . . . . . . . . 1 . . . 1 . . . . . 1 . . . . . . . . 1 . Construction Impeded 4 | . . . . . 2 . . . . . . . . . . . 2 . . . . . . . . . . . . . . . . Haulers Reinforced 2 | . . . . . . . . . . . . . . . . . . 1 . . . . . . . . . 1 . . . . . Active Scanning Responses . | . . . . . . . . . . . . . . . . . . . . . . . . . . . . . . . . . . Cargo Convoy Interrupts . | . . . . . . . . . . . . . . . . . . . . . . . . . . . . . . . . . . Stealth | -11 -10 -10 -10 -9 -8 -7 -7 -7 -7 -7 -7 -6 -6 -6 -6 -6 -6 -5 -5 -5 -5 -4 -4 -4 -4 -4 -3 -3 -3 -2 -1 -1 -1 --------- Run | Scr Mat Min Exi Min Mat Fac Was Fac Low Low Dat Pro Fac Ext Cet Arc Hub Fac Upp Upp War Pro Fac Upp Upp Zhi Pro Res Qua Res Acc Com Ac0 Distress Signals 51 | . . . . . 5 . . 2 . . . . . 1 2 . 3 . . . 1 . . . . . . 7 . 1 . 29 . Communications Jammed 64 | . . . . . . . . . . . . . . . . . . . . . . . . . . . . 14 . 12 38 . . Distress Signals 64 | . . . . . . . . . . . . . . . . . . . . . . . . . . . . 14 . 12 38 . . Times Spotted 453 | . 17 12 . 9 32 3 6 18 4 4 . 2 11 34 14 20 37 6 11 27 3 8 11 1 6 . 17 11 30 20 16 57 6 Peak Tracking Total 12 | . 5 3 . 4 6 2 6 4 3 4 . 1 4 5 5 2 11 2 4 10 4 4 4 1 4 . 5 4 5 7 4 12 4 Tactical Retreats 26 | . . 1 . 2 1 . 1 . . . . . 1 2 . . 4 1 . 1 . . 1 . . . 1 . . 2 . 8 . Traps | -11 -10 -10 -10 -9 -8 -7 -7 -7 -7 -7 -7 -6 -6 -6 -6 -6 -6 -5 -5 -5 -5 -4 -4 -4 -4 -4 -3 -3 -3 -2 -1 -1 -1 ------- Run | Scr Mat Min Exi Min Mat Fac Was Fac Low Low Dat Pro Fac Ext Cet Arc Hub Fac Upp Upp War Pro Fac Upp Upp Zhi Pro Res Qua Res Acc Com Ac0 Traps Triggered 21 | . 3 . . . . 1 . . . . . . 3 2 . . 1 2 . . . . . . . . . 3 . . . 6 . Indirectly 1 | . . . . . . . . . . . . . . . . . 1 . . . . . . . . . . . . . . . . Trap Hack Attempts . | . . . . . . . . . . . . . . . . . . . . . . . . . . . . . . . . . . Triggered . | . . . . . . . . . . . . . . . . . . . . . . . . . . . . . . . . . . Disarmed . | . . . . . . . . . . . . . . . . . . . . . . . . . . . . . . . . . . Reprogrammed . | . . . . . . . . . . . . . . . . . . . . . . . . . . . . . . . . . . Reused . | . . . . . . . . . . . . . . . . . . . . . . . . . . . . . . . . . . Traps Extracted . | . . . . . . . . . . . . . . . . . . . . . . . . . . . . . . . . . . Installed . | . . . . . . . . . . . . . . . . . . . . . . . . . . . . . . . . . . Triggered 9 | . . . . . . . . . . . . 2 . . . . . . . . 7 . . . . . . . . . . . . Machines | -11 -10 -10 -10 -9 -8 -7 -7 -7 -7 -7 -7 -6 -6 -6 -6 -6 -6 -5 -5 -5 -5 -4 -4 -4 -4 -4 -3 -3 -3 -2 -1 -1 -1 ---------- Run | Scr Mat Min Exi Min Mat Fac Was Fac Low Low Dat Pro Fac Ext Cet Arc Hub Fac Upp Upp War Pro Fac Upp Upp Zhi Pro Res Qua Res Acc Com Ac0 Machines Disabled 50 | . 2 . . . 5 1 . 1 . . . . 1 1 1 4 16 1 . . . . 1 . . . . . 8 2 . 6 . Max in Single Turn 5 | . 1 . . . 2 1 . 1 . . . . 1 1 . . 5 1 . . . . 1 . . . . . 1 1 . 1 . Garrison Access 5 | . . . . . . . . 1 . . . . . . . . 1 . . . . . . . . . . . . 3 . . . Network Hub 1 | . . . . . . . . . . . . . . . . . 1 . . . . . . . . . . . . . . . . Machines Sabotaged . | . . . . . . . . . . . . . . . . . . . . . . . . . . . . . . . . . . Overloaded Fab Kills . | . . . . . . . . . . . . . . . . . . . . . . . . . . . . . . . . . . Hacking | -11 -10 -10 -10 -9 -8 -7 -7 -7 -7 -7 -7 -6 -6 -6 -6 -6 -6 -5 -5 -5 -5 -4 -4 -4 -4 -4 -3 -3 -3 -2 -1 -1 -1 --------- Run | Scr Mat Min Exi Min Mat Fac Was Fac Low Low Dat Pro Fac Ext Cet Arc Hub Fac Upp Upp War Pro Fac Upp Upp Zhi Pro Res Qua Res Acc Com Ac0 Machines Accessed 57 | . 7 . . . 6 . . 3 . . 3 . 2 3 . . 5 2 1 . 3 1 3 . . 4 . 2 3 4 1 4 . Terminals 37 | . 6 . . . 6 . . 2 . . . . 1 3 . . 3 1 . . . 1 3 . . . . 2 3 1 1 4 . Fabricators 1 | . . . . . . . . . . . . . 1 . . . . . . . . . . . . . . . . . . . . Repair Stations 1 | . . . . . . . . . . . . . . . . . . 1 . . . . . . . . . . . . . . . Recycling Units 1 | . 1 . . . . . . . . . . . . . . . . . . . . . . . . . . . . . . . . Scanalyzers . | . . . . . . . . . . . . . . . . . . . . . . . . . . . . . . . . . . Garrison Access 6 | . . . . . . . . 1 . . . . . . . . 2 . . . . . . . . . . . . 3 . . . Total Hacks 192 | . 14 . . . 24 . . 6 . . 25 . 3 4 . . 7 15 1 . 8 1 16 . . 17 . 10 20 10 1 10 . Successful 108 | . 7 . . . 13 . . 1 . . 25 . . 1 . . 4 7 1 . 8 1 7 . . 17 . 2 7 2 . 5 . Failed 82 | . 6 . . . 10 . . 5 . . . . 3 3 . . 3 8 . . . . 9 . . . . 8 13 8 1 5 . Catastrophic 18 | . . . . . . . . 1 . . . . 3 . . . 2 . . . . . 4 . . . . . 2 4 . 2 . Database Lockouts 2 | . 1 . . . 1 . . . . . . . . . . . . . . . . . . . . . . . . . . . . Manual 53 | . 4 . . . 13 . . . . . . . . 1 1 . . 11 . . 1 . 7 . . . . . 11 . . 4 . Terminals 123 | . 13 . . . 24 . . 4 . . . . 2 4 . . 4 12 . . . 1 16 . . . . 10 20 2 1 10 . Fabricators 1 | . . . . . . . . . . . . . 1 . . . . . . . . . . . . . . . . . . . . Repair Stations 3 | . . . . . . . . . . . . . . . . . . 3 . . . . . . . . . . . . . . . Recycling Units 1 | . 1 . . . . . . . . . . . . . . . . . . . . . . . . . . . . . . . . Scanalyzers . | . . . . . . . . . . . . . . . . . . . . . . . . . . . . . . . . . . Garrison Access 13 | . . . . . . . . 2 . . . . . . . . 3 . . . . . . . . . . . . 8 . . . Terminal Hacks 97 | . 6 . . . 12 . . 1 . . 25 . . 1 . . 3 6 1 . 8 1 6 . . 17 . 2 5 . . 3 . Record 12 | . . . . . . . . . . . 6 . . . . . . . . . . 1 . . . 5 . . . . . . . Part Schematic 15 | . . . . . . . . . . . 10 . . . . . . 1 . . . . . . . 4 . . . . . . . Robot Schematic 6 | . . . . . . . . . . . 6 . . . . . . . . . . . . . . . . . . . . . . Robot Analysis 10 | . 1 . . . 4 . . . . . . . . . . . . 1 . . . . . . . 4 . . . . . . . Prototype ID Bank 16 | . . . . . . . . . . . 3 . . . . . 1 . . . 6 . 1 . . 4 . 1 . . . . . Open Door 3 | . . . . . . . . . . . . . . . . . . . 1 . 2 . . . . . . . . . . . . Branch Access Points 4 | . . . . . . . . 1 . . . . . . . . . 1 . . . . 1 . . . . 1 . . . . . Emergency Access Points 1 | . 1 . . . . . . . . . . . . . . . . . . . . . . . . . . . . . . . . Machine Index 1 | . . . . . . . . . . . . . . . . . . . . . . . . . . . . . 1 . . . . Terminal Index 2 | . . . . . 1 . . . . . . . . . . . . . . . . . . . . . . . . . . 1 . Alert Level 4 | . . . . . 1 . . . . . . . . . . . . 1 . . . . . . . . . . 1 . . 1 . Unreport Threat 4 | . . . . . . . . . . . . . . . . . 2 1 . . . . . . . . . . 1 . . . . Locate Traps 6 | . 2 . . . 2 . . . . . . . . . . . . . . . . . 1 . . . . . 1 . . . . Patrol Status 1 | . . . . . 1 . . . . . . . . . . . . . . . . . . . . . . . . . . . . Recall Reinforcements 1 | . . . . . . . . . . . . . . . . . . . . . . . 1 . . . . . . . . . . Hauler Manifests 2 | . . . . . 2 . . . . . . . . . . . . . . . . . . . . . . . . . . . . Zone Layout 8 | . 2 . . . 1 . . . . . . . . 1 . . . 1 . . . . 2 . . . . . 1 . . . . Disengage Seal 1 | . . . . . . . . . . . . . . . . . . . . . . . . . . . . . . . . 1 . Fabricator Hacks . | . . . . . . . . . . . . . . . . . . . . . . . . . . . . . . . . . . Repair Station Hacks 1 | . . . . . . . . . . . . . . . . . . 1 . . . . . . . . . . . . . . . Scan Component 1 | . . . . . . . . . . . . . . . . . . 1 . . . . . . . . . . . . . . . Recycling Unit Hacks . | . . . . . . . . . . . . . . . . . . . . . . . . . . . . . . . . . . Scanalyzer . | . . . . . . . . . . . . . . . . . . . . . . . . . . . . . . . . . . Garrison Access Hacks 3 | . . . . . . . . . . . . . . . . . 1 . . . . . . . . . . . . 2 . . . Seal Access 3 | . . . . . . . . . . . . . . . . . 1 . . . . . . . . . . . . 2 . . . Unauthorized Hacks 7 | . 1 . . . 1 . . . . . . . . . . . . . . . . . 1 . . . . . 2 . . 2 . Terminals 6 | . . . . . 1 . . . . . . . . . . . . . . . . . 1 . . . . . 2 . . 2 . Botnet 4 | . . . . . 1 . . . . . . . . . . . . . . . . . 1 . . . . . 1 . . 1 . Operators 2 | . . . . . . . . . . . . . . . . . . . . . . . . . . . . . 1 . . 1 . Fabricators . | . . . . . . . . . . . . . . . . . . . . . . . . . . . . . . . . . . Repair Stations . | . . . . . . . . . . . . . . . . . . . . . . . . . . . . . . . . . . Recycling Units 1 | . 1 . . . . . . . . . . . . . . . . . . . . . . . . . . . . . . . . Tunnel 1 | . 1 . . . . . . . . . . . . . . . . . . . . . . . . . . . . . . . . Scanalyzers . | . . . . . . . . . . . . . . . . . . . . . . . . . . . . . . . . . . Garrison Access . | . . . . . . . . . . . . . . . . . . . . . . . . . . . . . . . . . . Data Cores Recovered . | . . . . . . . . . . . . . . . . . . . . . . . . . . . . . . . . . . Used . | . . . . . . . . . . . . . . . . . . . . . . . . . . . . . . . . . . Hacking Detections 37 | . 2 . . . 6 . . 3 . . . . 2 3 1 . 3 2 . . . . 3 . . . . 2 3 3 1 3 . Full Trace Events 3 | . . . . . . . . . . . . . 1 . . . . 1 . . . . 1 . . . . . . . . . . Feedback Events . | . . . . . . . . . . . . . . . . . . . . . . . . . . . . . . . . . . Feedback Blocked . | . . . . . . . . . . . . . . . . . . . . . . . . . . . . . . . . . . Robot Schematics Acquired 6 | . . . . . . . . . . . 6 . . . . . . . . . . . . . . . . . . . . . . Robots Built . | . . . . . . . . . . . . . . . . . . . . . . . . . . . . . . . . . . Authchips . | . . . . . . . . . . . . . . . . . . . . . . . . . . . . . . . . . . Time . | . . . . . . . . . . . . . . . . . . . . . . . . . . . . . . . . . . Total Robot Build Rating . | . . . . . . . . . . . . . . . . . . . . . . . . . . . . . . . . . . Part Schematics Acquired 15 | . . . . . . . . . . . 10 . . . . . . 1 . . . . . . . 4 . . . . . . . Parts Built . | . . . . . . . . . . . . . . . . . . . . . . . . . . . . . . . . . . Authchips . | . . . . . . . . . . . . . . . . . . . . . . . . . . . . . . . . . . Time . | . . . . . . . . . . . . . . . . . . . . . . . . . . . . . . . . . . Total Part Build Rating . | . . . . . . . . . . . . . . . . . . . . . . . . . . . . . . . . . . Parts Repaired . | . . . . . . . . . . . . . . . . . . . . . . . . . . . . . . . . . . Time . | . . . . . . . . . . . . . . . . . . . . . . . . . . . . . . . . . . Parts Recycled . | . . . . . . . . . . . . . . . . . . . . . . . . . . . . . . . . . . Recycled Matter . | . . . . . . . . . . . . . . . . . . . . . . . . . . . . . . . . . . Retrieved Matter . | . . . . . . . . . . . . . . . . . . . . . . . . . . . . . . . . . . Retrieved Components . | . . . . . . . . . . . . . . . . . . . . . . . . . . . . . . . . . . Parts Scanalyzed . | . . . . . . . . . . . . . . . . . . . . . . . . . . . . . . . . . . Part Schematics Acquired . | . . . . . . . . . . . . . . . . . . . . . . . . . . . . . . . . . . Parts Damaged . | . . . . . . . . . . . . . . . . . . . . . . . . . . . . . . . . . . Bothacking | -11 -10 -10 -10 -9 -8 -7 -7 -7 -7 -7 -7 -6 -6 -6 -6 -6 -6 -5 -5 -5 -5 -4 -4 -4 -4 -4 -3 -3 -3 -2 -1 -1 -1 ------------ Run | Scr Mat Min Exi Min Mat Fac Was Fac Low Low Dat Pro Fac Ext Cet Arc Hub Fac Upp Upp War Pro Fac Upp Upp Zhi Pro Res Qua Res Acc Com Ac0 Used RIF Installer . | . . . . . . . . . . . . . . . . . . . . . . . . . . . . . . . . . . Robots Hacked . | . . . . . . . . . . . . . . . . . . . . . . . . . . . . . . . . . . Non-combat . | . . . . . . . . . . . . . . . . . . . . . . . . . . . . . . . . . . Combat . | . . . . . . . . . . . . . . . . . . . . . . . . . . . . . . . . . . Robot Hacks Applied . | . . . . . . . . . . . . . . . . . . . . . . . . . . . . . . . . . . Relay Couplers Released 10 | . . . . . . . . 2 . . . . 4 . . . . . . . . . . . . . . . . 4 . . . Machine Destruction 2 | . . . . . . . . 2 . . . . . . . . . . . . . . . . . . . . . . . . . Programmers 8 | . . . . . . . . . . . . . 4 . . . . . . . . . . . . . . . . 4 . . . Fabnet Peak Effective % . | . . . . . . . . . . . . . . . . . . . . . . . . . . . . . . . . . . Robots Rewired 22 | . . . . . . . . . . . . . . 16 . . . . . 2 4 . . . . . . . . . . . . Allies Hacked . | . . . . . . . . . . . . . . . . . . . . . . . . . . . . . . . . . . Hacks Repelled . | . . . . . . . . . . . . . . . . . . . . . . . . . . . . . . . . . . Allies | -11 -10 -10 -10 -9 -8 -7 -7 -7 -7 -7 -7 -6 -6 -6 -6 -6 -6 -5 -5 -5 -5 -4 -4 -4 -4 -4 -3 -3 -3 -2 -1 -1 -1 -------- Run | Scr Mat Min Exi Min Mat Fac Was Fac Low Low Dat Pro Fac Ext Cet Arc Hub Fac Upp Upp War Pro Fac Upp Upp Zhi Pro Res Qua Res Acc Com Ac0 Total Allies 35 | . . . . . . . 1 . . . . 1 . 22 5 . . . . 2 4 . . . . . . . . . . . . Largest Group 10 | . . . . . . . 1 . . . . 1 . 10 9 7 3 . . 2 5 1 . . . . . . . . . . . Highest-Rated Group 740 | . . . . . . . 31 . . . . 96 . 342 740 605 288 . . 78 288 65 . . . . . . . . . . . Highest-Rated Ally 159 | . . . . . . . 31 . . . . 96 . 159 159 159 96 . . 49 68 65 . . . . . . . . . . . Total Orders 17 | . . . . . . . . . . . . . . 5 1 5 . . . . 5 1 . . . . . . . . . . . STAY 10 | . . . . . . . . . . . . . . 2 1 3 . . . . 3 1 . . . . . . . . . . . ROAM 1 | . . . . . . . . . . . . . . 1 . . . . . . . . . . . . . . . . . . . FOLLOW 6 | . . . . . . . . . . . . . . 2 . 2 . . . . 2 . . . . . . . . . . . . Ally Attacks 399 | . . . . . . . 7 . . . . 2 . 142 118 47 51 . . 13 19 . . . . . . . . . . . . Total Damage 11758 | . . . . . . . 147 . . . . 45 . 2834 3646 1475 2126 . . 258 1227 . . . . . . . . . . . . Kills 60 | . . . . . . . . . . . . 1 . 22 17 1 13 . . 2 4 . . . . . . . . . . . . Allies Corrupted . | . . . . . . . . . . . . . . . . . . . . . . . . . . . . . . . . . . Allies Melted 3 | . . . . . . . . . . . . . . 1 . . . . . . 1 . . . . . . . . 1 . . . Intel | -11 -10 -10 -10 -9 -8 -7 -7 -7 -7 -7 -7 -6 -6 -6 -6 -6 -6 -5 -5 -5 -5 -4 -4 -4 -4 -4 -3 -3 -3 -2 -1 -1 -1 ------- Run | Scr Mat Min Exi Min Mat Fac Was Fac Low Low Dat Pro Fac Ext Cet Arc Hub Fac Upp Upp War Pro Fac Upp Upp Zhi Pro Res Qua Res Acc Com Ac0 Robot Analysis Total 10 | . 1 . . . 4 . . . . . . . . . . . . 1 . . . . . . . 4 . . . . . . . Derelict Logs Recovered 13 | . . 1 . 1 . . . . 3 2 . . . . . . . . 2 1 . 2 . . 1 . . . . . . . . Drone Launches . | . . . . . . . . . . . . . . . . . . . . . . . . . . . . . . . . . . Drone Recoveries . | . . . . . . . . . . . . . . . . . . . . . . . . . . . . . . . . . . Exploration | -11 -10 -10 -10 -9 -8 -7 -7 -7 -7 -7 -7 -6 -6 -6 -6 -6 -6 -5 -5 -5 -5 -4 -4 -4 -4 -4 -3 -3 -3 -2 -1 -1 -1 ------------- Run | Scr Mat Min Exi Min Mat Fac Was Fac Low Low Dat Pro Fac Ext Cet Arc Hub Fac Upp Upp War Pro Fac Upp Upp Zhi Pro Res Qua Res Acc Com Ac0 Turns Passed 30394 | 5 975 985 828 515 2157 315 138 1339 888 479 131 581 587 1906 354 622 676 465 967 503 1298 704 293 301 490 169 884 875 1102 1377 559 6834 92 Spaces Moved 17708 | 1 530 531 517 268 770 137 104 859 605 345 98 340 315 1060 264 325 400 266 733 301 871 521 174 246 371 146 563 523 612 1005 372 3499 36 Core 293 | . . . . . . . . . . . . . . . . . . . . . . . . . . . . . . . . 286 7 Treads 3456 | 1 530 531 517 268 770 . . . . . . . . . . 38 . . . . . . . . . . . . . . . 772 29 Legs 13959 | . . . . . . 137 104 859 605 345 98 340 315 1060 264 287 400 266 733 301 871 521 174 246 371 146 563 523 612 1005 372 2441 . Wheels . | . . . . . . . . . . . . . . . . . . . . . . . . . . . . . . . . . . Hover . | . . . . . . . . . . . . . . . . . . . . . . . . . . . . . . . . . . Flight . | . . . . . . . . . . . . . . . . . . . . . . . . . . . . . . . . . . Fastest Speed 50 | 160 160 160 160 160 160 128 128 128 128 128 130 128 118 97 102 108 120 120 120 120 114 114 110 110 108 110 108 115 115 108 108 50 50 Average Speed 136 | 160 160 161 160 160 230 128 128 128 128 128 130 129 125 112 103 126 120 120 120 120 119 114 110 110 109 110 121 149 115 117 108 154 135 Slowest Speed 260 | 160 160 240 160 160 240 128 128 128 128 130 130 130 128 189 108 240 120 120 120 120 120 114 110 110 110 110 255 255 186 190 108 260 156 Overloaded Moves . | . . . . . . . . . . . . . . . . . . . . . . . . . . . . . . . . . . Propulsion Burnouts . | . . . . . . . . . . . . . . . . . . . . . . . . . . . . . . . . . . Robots Hopped . | . . . . . . . . . . . . . . . . . . . . . . . . . . . . . . . . . . Cave-ins Triggered 1 | . . . . . . . . . . . . . . 1 . . . . . . . . . . . . . . . . . . . Teleports 3 | . . . . . . . . . . . . . . . . . . . . . . . . . . . . . . 1 . 1 1 Exploration Rate (%) 50 | 2 98 96 69 56 51 4 74 21 72 59 69 50 8 78 67 88 43 6 74 42 93 64 8 45 71 60 63 17 49 24 17 75 3 Regions Visited 33 Branch Regions 22 Pre-discovered Areas 5 | . 1 . . . . . . . . . 1 . . . . . . . . . . . . . . 3 . . . . . . . Known Exits Taken 11 | . . . . . . . . 1 1 1 . . 1 . . . 1 1 . . . . 1 1 . . . 1 1 . 1 . . Unknown Exits Taken 20 | 1 1 1 1 1 1 . . . . . 1 1 . 1 1 1 . . 1 1 1 1 . . 1 1 1 . . 1 . 1 . Scrap Searched 19 | . . 1 . . . . . . 4 2 . 1 . . . . . . 4 2 . 2 . 1 1 . 1 . . . . . . Spaces Dug 334 | . . 6 . . 3 10 . 7 19 6 . 2 29 18 1 . . 1 11 39 8 4 7 . . . 8 21 16 22 1 95 . Terrain Destroyed 1574 | . 22 21 . . 87 12 . 27 45 21 . 2 76 64 3 29 251 10 83 152 8 29 10 3 44 . 155 71 52 45 31 186 35 Melee 41 | . . . . . 1 1 . 7 8 . . 2 8 . 1 . . . . . 8 . . . . . . . 1 4 . . . Projectile 469 | . . . . . 1 . . . . . . . 15 27 2 29 39 10 11 13 . 10 10 3 2 . 5 2 51 3 15 186 35 AOE 1063 | . 22 21 . . 85 11 . 20 37 21 . . 53 37 . . 212 . 72 139 . 19 . . 41 . 150 69 . 38 16 . . Terrain Rammed . | . . . . . . . . . . . . . . . . . . . . . . . . . . . . . . . . . . Walls Destroyed . | . . . . . . . . . . . . . . . . . . . . . . . . . . . . . . . . . . Machines Disabled . | . . . . . . . . . . . . . . . . . . . . . . . . . . . . . . . . . . Actions | -11 -10 -10 -10 -9 -8 -7 -7 -7 -7 -7 -7 -6 -6 -6 -6 -6 -6 -5 -5 -5 -5 -4 -4 -4 -4 -4 -3 -3 -3 -2 -1 -1 -1 --------- Run | Scr Mat Min Exi Min Mat Fac Was Fac Low Low Dat Pro Fac Ext Cet Arc Hub Fac Upp Upp War Pro Fac Upp Upp Zhi Pro Res Qua Res Acc Com Ac0 Total 22215 | 6 603 585 520 315 986 243 108 1036 695 368 101 434 417 1637 326 425 505 351 799 386 1113 596 228 266 415 154 696 594 882 1144 462 4751 68 Wait 2166 | . 29 2 . 16 56 54 1 73 71 7 . 47 26 292 24 25 36 33 23 22 98 46 15 6 16 1 70 9 128 8 37 888 7 Move 17674 | . 529 530 516 267 769 137 103 858 604 344 97 339 314 1058 263 324 399 265 732 300 870 520 173 245 370 145 562 522 611 1004 371 3498 35 Hop . | . . . . . . . . . . . . . . . . . . . . . . . . . . . . . . . . . . Pick Up 178 | . 9 6 . 2 23 7 1 14 . 1 . 5 1 12 6 1 1 4 3 . 9 . 1 1 1 3 1 5 6 4 2 48 1 Fast Attach 224 | . 3 . . 1 8 . . 9 . 3 2 4 2 11 5 7 5 8 4 1 6 2 . 4 2 3 4 17 20 45 8 39 1 Attach 89 | 2 . 1 . 4 4 7 . 1 1 . . . 7 3 . . 2 3 . . 4 . 2 . 2 . 3 . 3 8 2 28 2 Detach 18 | . . . 2 . . . . 1 . . . . . . . . . 1 1 . . . . . . . 2 . . 5 1 4 1 Swap 222 | . 2 4 . . 23 7 2 16 7 3 . 7 17 15 5 1 9 4 8 9 3 9 2 2 4 . 9 5 7 3 2 36 1 Drop 331 | 4 3 1 2 3 13 9 1 23 . 3 2 9 2 20 11 7 7 4 9 . 18 2 . 4 1 2 1 14 29 37 6 77 7 Fire 899 | . 27 35 . 22 88 19 . 25 4 7 . 21 40 79 10 42 45 29 19 28 . 17 25 4 19 . 44 9 53 17 33 125 13 Melee 90 | . . . . . 1 3 . 16 8 . . 2 8 . 2 . . . . . 12 . . . . . . . 25 13 . . . Ram . | . . . . . . . . . . . . . . . . . . . . . . . . . . . . . . . . . . Kick 9 | . . . . . . . . . . . . . . . . . 1 . . 5 . . . . . . . 3 . . . . . Crush 26 | . 1 6 . . 1 . . . . . . . . . . 18 . . . . . . . . . . . . . . . . . Escape Stasis 19 | . . . . . . . . . . . . . . 1 . . . . . . . . . . . . . 10 . . . 8 . Rewire 270 | . . . . . . . . . . . . . . 146 . . . . . 21 93 . 10 . . . . . . . . . . Trap . | . . . . . . . . . . . . . . . . . . . . . . . . . . . . . . . . . . Miscellaneous . | . . . . . . . . . . . . . . . . . . . . . . . . . . . . . . . . . . Route ------- -11/Scrapyard -10/Materials (discovered 4 exits: [*Mat x3] / [*Min]) -10/Mines (discovered 3 exits: [*Mat x2] / [*Exi]) -10/Exiles -9/Mines -8/Materials (discovered 2 exits: [*Fac x2]) -7/Factory -7/Waste -7/Factory (discovered 3 exits: Sto / *Low x2) -7/Lower Caves -7/Lower Caves -7/Data Miner -6/Proximity Caves -6/Factory (discovered 2 exits: *Fac / *Ext) -6/Extension (discovered 2 exits: *Fac / *Cet) -6/Cetus (discovered 2 exits: *Fac / [*Arc]) -6/Archives (discovered 3 exits: *Fac / *Hub x2) -6/Hub_04(d) -5/Factory (discovered 2 exits: *Upp x2) -5/Upper Caves -5/Upper Caves -5/Warlord -4/Proximity Caves -4/Factory (discovered 2 exits: *Upp x2) -4/Upper Caves -4/Upper Caves -4/Zhirov -3/Proximity Caves -3/Research (discovered 5 exits: *Res x2 / Arm / *Qua x2) -3/Quarantine -2/Research -1/Access -1/Command (discovered 3 exits: [*Sur x2] / [*Ac0]) -1/Access_0 Near Former Tau Ceti IV History --------- Turn | Location | Event 6 | -11/Scrapyard | Discovered new exit (range 0) 6 | -11/Scrapyard | Entered Materials 24 | -10/Materials | Central database locked down 188 | -10/Materials | Discovered new exit (range 9) 315 | -10/Materials | Build established: Mutant 348 | -10/Materials | Discovered new exit (range 4) 550 | -10/Materials | Discovered new exit (range 5) 750 | -10/Materials | Discovered new exit (range 16) 981 | -10/Materials | Entered Mines 991 | -10/Mines | Discovered new exit (range 11) 1079 | -10/Mines | Learned Materials terminal intel 1253 | -10/Mines | Joined a pair of Derelicts in attacking an 0b10 outpost 1308 | -10/Mines | Discovered new exit (range 10) 1830 | -10/Mines | YI-UF0 nonchalantly dropped a Grenade Launcher on the ground 1928 | -10/Mines | Destroyed YI-UF0 1959 | -10/Mines | Deemed a non-threat by the Exiles lab entrance 1959 | -10/Mines | Discovered new exit (range 5) 1966 | -10/Mines | Entered Exiles 1966 | -10/Exiles | Found Exiles lab abandoned 2439 | -10/Exiles | Discovered new exit (range 14) 2794 | -10/Exiles | Entered Mines 2821 | -9/Mines | Assembled infested the area 2825 | -9/Mines | Learned Materials garrison access intel 3211 | -9/Mines | Core integrity fell below 50% 3287 | -9/Mines | Discovered new exit (range 8) 3309 | -9/Mines | Entered Materials 3309 | -8/Materials | Evolved 4 slots: Propulsion x2, Utility x2 3310 | -8/Materials | Loaded intel: 12 terminal locations 3311 | -8/Materials | Loaded intel: 1 garrison access location 3321 | -8/Materials | Build established: Scavenger-Mutant 3861 | -8/Materials | Central database locked down 4159 | -8/Materials | Discovered new exit (range 5) 5444 | -8/Materials | Discovered new exit (range 8) 5466 | -8/Materials | Entered Factory 5466 | -7/Factory | Evolved 2 slots: Power x1, Propulsion x1 5732 | -7/Factory | Build established: Mutant 5781 | -7/Factory | Sucked down chute 5781 | -7/Factory | Entered Waste 5782 | -7/Waste | Met a frightened Derelict 5796 | -7/Waste | EMP discharged 5796 | -7/Waste | System corruption reached 10% 5806 | -7/Waste | Spotted C-40 Crusher 5809 | -7/Waste | Spotted C-40 Crusher 5811 | -7/Waste | Spotted C-40 Crusher 5814 | -7/Waste | Spotted C-40 Crusher 5815 | -7/Waste | Spotted C-40 Crusher 5846 | -7/Waste | Spotted C-40 Crusher 5896 | -7/Waste | EMP discharged 5900 | -7/Waste | Discovered new exit (range 16) 5918 | -7/Waste | Identified exit to Factory 5919 | -7/Waste | Entered Factory 6881 | -7/Factory | Discovered new exit (range 16) 6943 | -7/Factory | Garrison activated, responded to threat 7113 | -7/Factory | Identified exit to Storage 7113 | -7/Factory | Identified exit to Lower Caves 7258 | -7/Factory | Entered Lower Caves 7322 | -7/Lower Caves | Identified exit to Lower Caves 7428 | -7/Lower Caves | Encountered a Warlord checkpoint 7467 | -7/Lower Caves | Attracted the attention of an 0b10 checkpoint 7594 | -7/Lower Caves | Learned Factory emergency access door positions 7824 | -7/Lower Caves | Learned location of 1 exit from Factory 8146 | -7/Lower Caves | Entered another Lower Caves area 8214 | -7/Lower Caves | Encountered a Warlord checkpoint 8374 | -7/Lower Caves | Spotted B-75 Beast 8444 | -7/Lower Caves | Identified exit to Data Miner 8585 | -7/Lower Caves | Learned 4 Factory zone layouts 8625 | -7/Lower Caves | Entered Data Miner 8626 | -7/Data Miner | Discovered new exit (range 6) 8651 | -7/Data Miner | Met Data Miner 8678 | -7/Data Miner | Acquired the access code to Warlord's prototype stash 8678 | -7/Data Miner | Learned location of Section 7 (-2) 8698 | -7/Data Miner | Received God Mode back door access code from Data Miner 8756 | -7/Data Miner | Entered Proximity Caves 8756 | -6/Proximity Caves | Spotted B-75 Beast 8819 | -6/Proximity Caves | Escorted by Enhanced Grunt 9230 | -6/Proximity Caves | Discovered new exit (range 13) 9319 | -6/Proximity Caves | Found Prototype Device 9319 | -6/Proximity Caves | Identified Exp. Thermal Shield 9337 | -6/Proximity Caves | Entered Factory 9337 | -6/Factory | Evolved 2 slots: Utility x2 9338 | -6/Factory | Identified exit to Factory 9339 | -6/Factory | Identified exit to Extension 9588 | -6/Factory | Incoming investigation squad redirected 9842 | -6/Factory | Lost 3 parts (1p1n1w) 9924 | -6/Factory | Entered Extension 10029 | -6/Extension | Build established: Scavenger-Mutant 10363 | -6/Extension | Rescued a captive Derelict 10372 | -6/Extension | Rescued a captive Derelict 10382 | -6/Extension | Rescued a captive Derelict 10626 | -6/Extension | Build established: Commander-Mutant 10864 | -6/Extension | Spotted B-75 Beast 10883 | -6/Extension | Destroyed B-75 Beast 10955 | -6/Extension | Spotted B-75 Beast 10977 | -6/Extension | Build established: Scavenger-Mutant 11354 | -6/Extension | Rescued a captive Derelict 11424 | -6/Extension | Disrupted transfer network 11474 | -6/Extension | Crushed by falling debris 11475 | -6/Extension | System corruption reached 10% 11495 | -6/Extension | Rescued A7 11528 | -6/Extension | Rescued a captive Derelict 11806 | -6/Extension | Discovered exit to Factory (range 10) 11807 | -6/Extension | Discovered new exit (range 6) 11830 | -6/Extension | Entered Cetus 11830 | -6/Cetus | Accompanied by 7 allies (A7) 11835 | -6/Cetus | Acquired a Cetus Manufacturing Module code from A7 11845 | -6/Cetus | Spotted Cetus Guard 11845 | -6/Cetus | Spotted Cetus Guard 11849 | -6/Cetus | Spotted Cetus Guard 11851 | -6/Cetus | Spotted Cetus Guard 11853 | -6/Cetus | Allies destroyed Cetus Guard 11861 | -6/Cetus | Allies destroyed Cetus Guard 11863 | -6/Cetus | Allies destroyed Cetus Guard 11866 | -6/Cetus | Allies destroyed Cetus Guard 11920 | -6/Cetus | Started Cetus Manufacturing Module 11940 | -6/Cetus | Escorted A7 to Cetus Mainframe 11945 | -6/Cetus | Manufactured an Enhanced Grunt 11954 | -6/Cetus | Discovered new exit (range 16) 11970 | -6/Cetus | Manufactured an Enhanced Grunt 11995 | -6/Cetus | Manufactured an Enhanced Grunt 12020 | -6/Cetus | Manufactured an Enhanced Grunt 12045 | -6/Cetus | Manufactured an Enhanced Grunt 12097 | -6/Cetus | Spotted Cetus Guard 12098 | -6/Cetus | Spotted Cetus Guard 12100 | -6/Cetus | Spotted Cetus Guard 12108 | -6/Cetus | Spotted Cetus Guard 12110 | -6/Cetus | Allies destroyed Cetus Guard 12112 | -6/Cetus | Allies destroyed Cetus Guard 12115 | -6/Cetus | Allies destroyed Cetus Guard 12120 | -6/Cetus | Allies destroyed Cetus Guard 12124 | -6/Cetus | Discovered exit to Factory (range 16) 12132 | -6/Cetus | Met Revision 17 12184 | -6/Cetus | Entered Archives 12184 | -6/Archives | Accompanied by 7 allies (A7) 12189 | -6/Archives | Received a hacking code to weaken MAIN.C 12234 | -6/Archives | Discovered exit to Factory (range 15) 12276 | -6/Archives | Discovered new exit (range 16) 12483 | -6/Archives | Discovered new exit (range 15) 12806 | -6/Archives | Entered Hub_04(d) 12806 | -6/Hub_04(d) | Accompanied by 3 allies 13156 | -6/Hub_04(d) | First assault squad dispatched 13196 | -6/Hub_04(d) | Incoming assault squad redirected 13341 | -6/Hub_04(d) | Destroyed 7 combat bots 13396 | -6/Hub_04(d) | Discovered exit to Factory (range 9) 13470 | -6/Hub_04(d) | Network Hub disabled 13482 | -6/Hub_04(d) | Entered Factory 13482 | -5/Factory | Evolved 2 slots: Utility x2 13502 | -5/Factory | Discovered new exit (range 15) 13929 | -5/Factory | Identified exit to Upper Caves 13947 | -5/Factory | Entered Upper Caves 14053 | -5/Upper Caves | Learned Factory terminal intel 14688 | -5/Upper Caves | Learned Factory trap positions 14907 | -5/Upper Caves | Discovered new exit (range 7) 14908 | -5/Upper Caves | Attracted the attention of an 0b10 checkpoint 14914 | -5/Upper Caves | Entered another Upper Caves area 14982 | -5/Upper Caves | Attracted the attention of an 0b10 outpost 15097 | -5/Upper Caves | Encountered a Warlord checkpoint 15378 | -5/Upper Caves | Attracted the attention of an 0b10 checkpoint 15401 | -5/Upper Caves | Discovered new exit (range 9) 15417 | -5/Upper Caves | Entered Warlord 15417 | -5/Warlord | Accompanied by 1 ally 15458 | -5/Warlord | System corruption cleaned by Quarantine Array 16220 | -5/Warlord | Received a Watcher feed algorithm from an ecstatic Tinkerer 16297 | -5/Warlord | Warlord's base attacked by MAIN.C 16443 | -5/Warlord | Met EX-DEC 16449 | -5/Warlord | Found Prototype Energy Cannon 16517 | -5/Warlord | Met Warlord 16528 | -5/Warlord | Opened Warlord's prototype stash 16550 | -5/Warlord | Found Prototype Reactor 16550 | -5/Warlord | Identified Vortex Chain Reactor 16558 | -5/Warlord | Found Prototype Device 16558 | -5/Warlord | Identified Exp. Focal Shield 16647 | -5/Warlord | Warlord forces counterattacked 16680 | -5/Warlord | Opened side exit 16702 | -5/Warlord | Discovered new exit (range 11) 16715 | -5/Warlord | Entered Proximity Caves 16715 | -4/Proximity Caves | Accompanied by 1 ally 16742 | -4/Proximity Caves | Learned location of 1 exit from Upper Caves 16944 | -4/Proximity Caves | Spotted B-86 Titan 17201 | -4/Proximity Caves | Learned location of 2 exits from Research 17401 | -4/Proximity Caves | Discovered new exit (range 15) 17419 | -4/Proximity Caves | Entered Factory 17419 | -4/Factory | Evolved 2 slots: Power x1, Propulsion x1 17420 | -4/Factory | Identified exit to Upper Caves 17421 | -4/Factory | Loaded intel: 117 trap records 17422 | -4/Factory | Loaded intel: 24 terminal locations 17611 | -4/Factory | Spotted B-86 Titan 17654 | -4/Factory | Incoming investigation squad redirected 17712 | -4/Factory | Entered Upper Caves 17713 | -4/Upper Caves | Identified exit to Upper Caves 17714 | -4/Upper Caves | Attracted the attention of an 0b10 checkpoint 18013 | -4/Upper Caves | Entered another Upper Caves area 18026 | -4/Upper Caves | Build established: Infiltrator-Mutant 18030 | -4/Upper Caves | Encountered a Warlord checkpoint 18061 | -4/Upper Caves | Spotted B-86 Titan 18338 | -4/Upper Caves | Learned Research garrison access intel 18406 | -4/Upper Caves | Attracted the attention of an 0b10 checkpoint 18480 | -4/Upper Caves | Discovered new exit (range 13) 18503 | -4/Upper Caves | Entered Zhirov 18503 | -4/Zhirov | Discovered new exit (range 3) 18523 | -4/Zhirov | Met Zhirov 18543 | -4/Zhirov | Learned location of Command (-1) 18543 | -4/Zhirov | Learned location of Testing (-2) 18543 | -4/Zhirov | Learned location of Quarantine (-3) 18554 | -4/Zhirov | Zhirov requested help retrieving the SGEMP Prototype 18571 | -4/Zhirov | Found Alien Artifact 18571 | -4/Zhirov | Identified Integrated Reactor 18571 | -4/Zhirov | Installed Integrated Reactor, increased core energy generation (+10) 18584 | -4/Zhirov | Found Alien Artifact 18637 | -4/Zhirov | Build established: Scavenger-Mutant 18672 | -4/Zhirov | Entered Proximity Caves 18949 | -3/Proximity Caves | Attracted the attention of an 0b10 checkpoint 19234 | -3/Proximity Caves | Lost 3 parts (2u1w) 19343 | -3/Proximity Caves | Discovered new exit (range 13) 19484 | -3/Proximity Caves | Build established: Mutant 19486 | -3/Proximity Caves | Found Imp. Powered Armor 19491 | -3/Proximity Caves | Found Imp. Powered Armor 19499 | -3/Proximity Caves | Lost 3 parts (1n1u1w) 19556 | -3/Proximity Caves | Entered Research 19556 | -3/Research | Evolved 2 slots: Propulsion x1, Weapon x1 19557 | -3/Research | Identified exit to Quarantine 19557 | -3/Research | Identified exit to Research 19558 | -3/Research | Loaded intel: 4 garrison access locations 19625 | -3/Research | Identified exit to Armory 19756 | -3/Research | Revision forces began assault on 0b10 19820 | -3/Research | Met up with Revision 17++ 19858 | -3/Research | Discovered exit to Research (range 7) 20072 | -3/Research | Found Prototype Launcher 20072 | -3/Research | Identified Tactical Quantum Warhead 20076 | -3/Research | Found Tactical Quantum Warhead 20078 | -3/Research | Found Tactical Quantum Warhead 20256 | -3/Research | Research terminal network offline 20279 | -3/Research | Build established: Scavenger-Tank 20431 | -3/Research | Entered Quarantine 20852 | -3/Quarantine | Found Alien Artifact 20852 | -3/Quarantine | Identified Core Reset Matrix 20852 | -3/Quarantine | Identified Transdimensional Reconstructor 20852 | -3/Quarantine | Used Core Reset Matrix 20856 | -3/Quarantine | Detected hypermatrix surge 20856 | -3/Quarantine | Sensed 15 artifacts in vicinity 20924 | -3/Quarantine | Found Dimensional Node Initializer 20924 | -3/Quarantine | Initialized slip node 20934 | -3/Quarantine | Found Hpw. Transdimensional Reconstructor 21128 | -3/Quarantine | Destroyed 7 combat bots 21144 | -3/Quarantine | Found Sigix Broadsword 21190 | -3/Quarantine | Cryocooling Duct disabled 21205 | -3/Quarantine | Ambient heat levels rising (+20) 21205 | -3/Quarantine | Non-combat units ordered to evacuate 21251 | -3/Quarantine | Found Core Cannon 21294 | -3/Quarantine | Discovered exit to Research (range 16) 21371 | -3/Quarantine | Spotted Alpha 7 21399 | -3/Quarantine | Destroyed Alpha 7 21409 | -3/Quarantine | Found Prototype Processor 21409 | -3/Quarantine | Identified Exp. Targeting Computer 21441 | -3/Quarantine | Build established: Scavenger-Mutant 21448 | -3/Quarantine | Found Subatomic Replicator 21470 | -3/Quarantine | System corruption reached 10% 21533 | -3/Quarantine | Entered Research 21533 | -2/Research | Warlord forces began assault on 0b10 21533 | -2/Research | Evolved 2 slots: Weapon x2 21579 | -2/Research | Discovered new exit (range 6) 21581 | -2/Research | Met up with Warlord 21643 | -2/Research | Research machine network offline 21973 | -2/Research | Found Prototype Device 21973 | -2/Research | Identified Exp. Thermal Shield 22294 | -2/Research | Found Prototype Processor 22294 | -2/Research | Identified Exp. Core Analyzer 22530 | -2/Research | Spotted Striker 22536 | -2/Research | Spotted Striker 22559 | -2/Research | Destroyed Striker 22565 | -2/Research | Warped through subspace 22681 | -2/Research | Lost 4 parts (1p2n1u) 22883 | -2/Research | Found Prototype Device 22883 | -2/Research | Identified Adv. Kinecellerator 22910 | -2/Research | Entered Access 22910 | -1/Access | Evolved 2 slots: Power x1, Weapon x1 22934 | -1/Access | Found Prototype Processor 22934 | -1/Access | Identified Spectral Analyzer 23410 | -1/Access | First assault squad dispatched 23462 | -1/Access | Discovered new exit (range 7) 23468 | -1/Access | Identified exit to Command 23469 | -1/Access | Entered Command 23503 | -1/Command | Spotted B-99 Colossus 24257 | -1/Command | First assault squad dispatched 24273 | -1/Command | Incoming assault squad redirected 24565 | -1/Command | Spotted Combat Programmer 24627 | -1/Command | Identified BFG-9k Vortex Edition 24657 | -1/Command | Used Subatomic Replicator to replicate BFG-9k Vortex Edition 24666 | -1/Command | Met MAIN.C 24669 | -1/Command | System corruption reached 10% 24671 | -1/Command | 0b10 Conduit disabled 24714 | -1/Command | Destroyed MAIN.C Shell 24716 | -1/Command | MAIN.C activated Command garrisons 24735 | -1/Command | Destroyed MAIN.C 24738 | -1/Command | Destroyed Combat Programmer 24754 | -1/Command | Lost 6 parts (2p3u1w) 24765 | -1/Command | Discovered new exit (range 40) 24765 | -1/Command | Discovered new exit (range 94) 24765 | -1/Command | Extracted map data and part IDs from MAIN.C's data core 24775 | -1/Command | All MAIN.C guards destroyed 24820 | -1/Command | Spotted B-99 Colossus 25321 | -1/Command | Build established: Mutant 25668 | -1/Command | Found Singularity Reactor 25679 | -1/Command | Found Exp. System Purifier 25911 | -1/Command | Found Prototype Processor 25911 | -1/Command | Identified Spectral Analyzer 25918 | -1/Command | Found Zero-point Reactor 25922 | -1/Command | Found Vortex Chain Reactor 25942 | -1/Command | Build established: Generator-Mutant 27713 | -1/Command | Found Exp. Core Analyzer 27746 | -1/Command | Found Exp. Targeting Computer 30294 | -1/Command | Warped through subspace to slip node 30294 | -1/Command | Discovered new exit (range 5) 30295 | -1/Command | Core integrity fell below 50% 30303 | -1/Command | Entered Access_0 30304 | -1/Access_0 | Sensed 4 artifacts in vicinity 30304 | -1/Access_0 | Met Architect 30310 | -1/Access_0 | Architect warped through subspace 30312 | -1/Access_0 | Destroyed A8 30385 | -1/Access_0 | Destroyed Architect 30386 | -1/Access_0 | Architect triggered a singularity event 30390 | -1/Access_0 | Found Hpw. Transdimensional Reconstructor 30390 | -1/Access_0 | Warped through subspace to slip node 30390 | -1/Access_0 | Discovered new exit (range 8) 30392 | -1/Access_0 | Released all parts (13) 30395 | *** | Escaped singularity! Last Messages --------------- 30390_ Acquired Hpw. Transdimensional Reconstructor. 30390_ Warped through subspace, drawn to slip node. 30390_ EXIT=FOUND 30391_ A0_COM: 6. 30392_ A0_COM: 5. 30392_ Released BFG-9k Vortex Edition. 30392_ Released Lyr. Heavy Armor Plating. 30392_ Released Zero-point Reactor. 30392_ Released Adv. Heavy Siege Treads. 30392_ Released Exp. Targeting Computer. 30392_ Released Singularity Reactor. 30392_ Released Exp. Targeting Computer. 30392_ Released Hcp. Storage Unit. 30392_ Released Enh. Armored Heavy Treads. 30392_ Released Exp. Core Analyzer. 30392_ Released Biometal Medium Treads. 30392_ Released Adv. Coolant Injector. 30393_ A0_COM: 4. 30394_ A0_COM: 3. 30395_ A0_COM: 2. Map ----- +----------------------------------------------------+ | | | | | | | | | | | | | | | | | | | | | | | | | | | | | | | | | ?????????????????????????????????????????????????? | | ?????????????????????????????????????????????????? | | ?????????????????????????????????????????????????? | | ?????????????????????????????????????????????????? | | ?????????????????????????????????????????????????? | | ?????????????????????????????????????????????????? | | ????????????????????????###??????????????????????? | | ???????????????????????## ##?????????????????????? | | ???????????????????????# #?????????????????????? | | ???????????????????????# @ #?????????????????????? | | ??????????????????????## #?????????????????????? | | ??????????????????????# #?????????????????????? | | ??????????????????????# ##?????????????????????? | | ??????????????????????##=! #?????????????????????? | | ??????????????????????#=!!=#?????????????????????? | | ??????????????????????#!!!##?????????????????????? | | ??????????????????????#*]*!#?????????????????????? | | ??????????????????????#!=!##?????????????????????? | | ??????????????????????##]=#??????????????????????? | | ???????????????????????####??????????????????????? | | ?????????????????????????????????????????????????? | | ?????????????????????????????????????????????????? | | ?????????????????????????????????????????????????? | | ?????????????????????????????????????????????????? | | ?????????????????????????????????????????????????? | | ?????????????????????????????????????????????????? | | ?????????????????????????????????????????????????? | | ?????????????????????????????????????????????????? | | ?????????????????????????????????????????????????? | | ?????????????????????????????????????????????????? | | ?????????????????????????????????????????????????? | | ?????????????????????????????????????????????????? | | ?????????????????????????????????????????????????? | | ?????????????????????????????????????????????????? | +----------------------------------------------------+ Best States ------------- Heat Dissipation 147 Coolant Potential 100 Energy Generation 113 Energy Capacity 1840 Matter Stores 300 Matter Capacity 300 Sight Range 24 Robot Scan Range 18 Terrain Scan Density 210 Jamming Range 14 Cloak Strength 3 Corruption Block 6 Armor Coverage 1200 Resistance: TH 30 Resistance: EM 25 Core Shielding 20 Power Shielding 90 Phase Shifting 15 Evasion (%) 61 Targeting Accuracy 24 Core Analysis 8 Armor Integrity Analysis 40 Recoil Reduction 7 Offensive Hacking 14 Trap Extractor Capacity 8 Item Schematics ----------------- None Robot Schematics ------------------ None Fabricated ------------ Nothing Alien Tech Used ----------------- Integrated Reactor Core Reset Matrix Dimensional Node Initializer Sigix Broadsword Core Cannon Transdimensional Reconstructor Subatomic Replicator High-powered Transdimensional Reconstructor Achievements -------------- None Challenges ------------ None Game ------ Seed ThermoelectricAdvancedCore Manual? 0 Play Time 04:35:41 Cumulative 678.1 hours Start 2022.11.09 @ 22:56:04 End 2022.11.13 @ 23:28:09 Sessions 3 Manual Loads 0 Difficulty Rogue Special Mode None Game No. 617 Rogue 617 Adventurer 0 Explorer 0 Win Type 6 Total 28 Types 12/5/5/1/1/0/3/1/0 Lore% 91 Gallery% 96 Achievement% 80 Wizard Run 0 Options --------- ASCII 0 Keyboard 0 Movement Mouse Keybinds 1 Fullscreen 2 Font 24/Smallcaps Map View 76x50 Tactical HUD 1 Map Filters NONE Filters NONE Steam 1 RUN: 3f200887-edca-41e8-8430-8c6889631f46